[Event "44th Chess Olympiad Women 2022"]
[Site "Chennai"]
[Date "2022.08.02"]
[Round "5.16"]
[White "Martynkova, Olena"]
[Black "Houska, Jovanka"]
[Result "1/2-1/2"]
[ECO "E08"]
[WhiteElo "2213"]
[BlackElo "2360"]
[Annotator "RC"]
[PlyCount "48"]
[EventDate "2022.07.29"]
[EventType "team-tourn"]
[EventCountry "IND"]
[SourceTitle "playchess.com"]
[Source "ChessBase"]
[SourceQuality "1"]
[WhiteTeam "Lithuania"]
[BlackTeam "England"]
[WhiteTeamCountry "LTU"]
[BlackTeamCountry "ENG"]
[TimeControl "40/5400+30:1800+30"]

1. d4 {[%emt 0:00:03]} d5 {[%emt 0:00:11]} 2. c4 {[%emt 0:00:15]} e6 {[%emt 0:00:05]} 3. Nf3 {[%emt 0:00:19]} Nf6 {[%emt 0:00:06]} 4. g3 {[%emt 0:00:17]} Bb4+ {[%emt 0:00:15]} 5. Bd2 {[%emt 0:00:40]} Be7 {[%emt 0:00:15]} 6. Qc2 {[%emt 0:01:54]} O-O {[%emt 0:03:15]} 7. Bg2 {[%emt 0:01:04]} c6 {[%emt 0:02:43]} 8. O-O {[%emt 0:02:14]} Nbd7 {[%emt 0:00:11]} 9. Bf4 {[%emt 0:01:04]} b6 {[%emt 0:00:38]} 10. cxd5 {[%emt 0:06:51]} cxd5 {[%emt 0:00:05]} 11. Bc7 {[%emt 0:00:55]} Qe8 {[%emt 0:00:05]} 12. Nc3 {[%emt 0:10:34]} Ba6 {[%emt 0:09:13]} 13. Qa4 {[%emt 0:08:23]} Qc8 {[%emt 0:02:53]} 14. Rfc1 {[%emt 0:04:22]} Qb7 {[%emt 0:02:57]} 15. Nb5 {[%emt 0:08:48]} Rfc8 {[%emt 0:01:59]} 16. Bf4 {[%emt 0:01:08]} Bxb5 {[%emt 0:04:30]} 17. Qxb5 {[%emt 0:00:19]} h6 {[%emt 0:02:48]} 18. Qd3 {[%emt 0:09:42]} b5 {[%emt 0:09:33]} 19. Ne5 {[%emt 0:05:15]} a5 {[%emt 0:10:25]} 20. Nxd7 {[%emt 0:03:43]} Qxd7 {[%emt 0:02:07]} 21. Rxc8+ {[%emt 0:04:34]} Rxc8 {[%emt 0:02:55]} 22. Rc1 {[%emt 0:01:58]} b4 {[%emt 0:09:04]} 23. Rc2 {[%emt 0:05:45]} Rc6 {[%emt 0:03:56]} 24. b3 {[%emt 0:12:49]} Bd8 {[%emt 0:05:02]} 1/2-1/2

[Event "44th Chess Olympiad Women 2022"]
[Site "Chennai"]
[Date "2022.08.02"]
[Round "5.16"]
[White "Varney, Zoe"]
[Black "Simkunaite, Gabija"]
[Result "1/2-1/2"]
[ECO "B10"]
[WhiteElo "2045"]
[BlackElo "2010"]
[Annotator "NA RC"]
[PlyCount "64"]
[EventDate "2022.07.29"]
[EventType "team-tourn"]
[EventCountry "IND"]
[SourceTitle "playchess.com"]
[Source "ChessBase"]
[SourceQuality "1"]
[WhiteTeam "England"]
[BlackTeam "Lithuania"]
[WhiteTeamCountry "ENG"]
[BlackTeamCountry "LTU"]
[TimeControl "40/5400+30:1800+30"]

1. e4 {[%emt 0:00:30]} c6 {[%emt 0:00:30]} 2. Nf3 {[%emt 0:00:00]} d5 {[%emt 0:00:30]} 3. d3 {[%emt 0:00:00]} Bg4 {[%emt 0:04:51]} 4. Qe2 {[%emt 0:04:33]} Nd7 {[%emt 0:03:07]} 5. h3 {[%emt 0:09:31]} Bxf3 {[%emt 0:02:16]} 6. Qxf3 {[%emt 0:04:40]} Ngf6 {[%emt 0:00:40]} 7. g3 {[%emt 0:13:01]} e6 {[%emt 0:06:39]} 8. Bg2 {[%emt 0:01:02]} Bc5 {[%emt 0:03:00]} 9. O-O {[%emt 0:01:46]} O-O {[%emt 0:00:57]} 10. Qe2 {[%emt 0:09:11]} Qc7 {[%emt 0:04:20]} 11. Kh2 {[%emt 0:17:08]} e5 {[%emt 0:04:06]} 12. f4 {[%emt 0:00:00]} exf4 {[%emt 0:02:09]} 13. gxf4 {[%emt 0:00:00]} dxe4 {[%emt 0:00:48]} 14. dxe4 {[%emt 0:00:00]} Rfe8 {[%emt 0:01:12]} 15. e5 {[%emt 0:06:34]} Nxe5 {[%emt 0:09:49]} 16. fxe5 {[%emt 0:08:23]} Rxe5 {[%emt 0:00:07]} 17. Bf4 {[%emt 0:01:28]} Rxe2 {[%emt 0:00:06]} 18. Bxc7 {[%emt 0:00:04]} Rxc2 {[%emt 0:00:09]} 19. Nc3 {[%emt 0:06:06]} Bd4 {[%emt 0:02:17]} 20. Rad1 {[%emt 0:03:02]} Bxc3 {[%emt 0:01:33]} 21. bxc3 {[%emt 0:00:05]} Nd5 {[%emt 0:00:18]} 22. Bf4 {[%emt 0:01:46]} Re8 {[%emt 0:02:57]} 23. Kh1 {[%emt 0:07:14]} Rxc3 {[%emt 0:03:12]} 24. Bxd5 {[%emt 0:02:10]} cxd5 {[%emt 0:00:11]} 25. Rxd5 {[%emt 0:00:03]} Rxh3+ {[%emt 0:00:19]} 26. Kg2 {[%emt 0:00:03]} Ra3 {[%emt 0:00:17]} 27. Rf2 {[%emt 0:00:09]} f6 {[%emt 0:04:26]} 28. Rd7 {[%emt 0:00:06]} b6 {[%emt 0:01:15]} 29. Rc2 {[%emt 0:00:08]} Ra4 {[%emt 0:01:59]} 30. Rcc7 {[%emt 0:02:32]} Rxf4 {[%emt 0:00:32]} 31. Rxg7+ {[%emt 0:00:05]} Kh8 {[%emt 0:00:06]} 32. Rxh7+ {[%emt 0:00:04]} Kg8 {[%emt 0:00:03]} 1/2-1/2

[Event "44th Chess Olympiad Women 2022"]
[Site "Chennai"]
[Date "2022.08.02"]
[Round "5.16"]
[White "Sibajeva, Marija"]
[Black "Yao, Lan"]
[Result "0-1"]
[ECO "B47"]
[WhiteElo "2032"]
[BlackElo "2274"]
[Annotator "NA RC"]
[PlyCount "80"]
[EventDate "2022.07.29"]
[EventType "team-tourn"]
[EventCountry "IND"]
[SourceTitle "playchess.com"]
[Source "ChessBase"]
[SourceQuality "1"]
[WhiteTeam "Lithuania"]
[BlackTeam "England"]
[WhiteTeamCountry "LTU"]
[BlackTeamCountry "ENG"]
[TimeControl "40/5400+30:1800+30"]

1. e4 {[%emt 0:00:01]} c5 {[%emt 0:00:03]} 2. Nf3 {[%emt 0:00:03]} e6 {[%emt 0:00:04]} 3. d4 {[%emt 0:00:05]} cxd4 {[%emt 0:00:03]} 4. Nxd4 {[%emt 0:00:03]} Nc6 {[%emt 0:00:04]} 5. Nc3 {[%emt 0:00:06]} Qc7 {[%emt 0:00:04]} 6. Ndb5 {[%emt 0:00:07]} Qb8 {[%emt 0:00:24]} 7. Be3 {[%emt 0:00:04]} a6 {[%emt 0:01:03]} 8. Bb6 {[%emt 0:00:05]} axb5 {[%emt 0:00:19]} 9. Nxb5 {[%emt 0:00:04]} Bb4+ {[%emt 0:01:29]} 10. c3 {[%emt 0:00:04]} Ba5 {[%emt 0:00:41]} 11. Nc7+ {[%emt 0:00:08]} Qxc7 {[%emt 0:00:13]} 12. Bxc7 {[%emt 0:00:04]} Bxc7 {[%emt 0:00:03]} 13. Qg4 {[%emt 0:00:28]} g6 {[%emt 0:09:12]} 14. Bb5 {[%emt 0:00:19]} Nge7 {[%emt 0:06:55]} 15. h4 {[%emt 0:02:10]} Ne5 {[%emt 0:15:10]} 16. Qe2 {[%emt 0:02:11]} h5 {[%emt 0:01:10]} 17. Qe3 {[%emt 0:02:32]} b6 {[%emt 0:05:54]} 18. O-O {[%emt 0:08:11]} O-O {[%emt 0:06:23]} 19. Be2 {[%emt 0:06:20]} d5 {[%emt 0:06:21]} 20. f4 {[%emt 0:01:08]} Ng4 {[%emt 0:00:42]} 21. Bxg4 {[%emt 0:08:00]} hxg4 {[%emt 0:00:06]} 22. h5 {[%emt 0:01:54]} dxe4 {[%emt 0:02:53]} 23. hxg6 {[%emt 0:01:38]} Nxg6 {[%emt 0:01:28]} 24. Qxe4 {[%emt 0:01:46]} Ra5 {[%emt 0:00:25]} 25. g3 {[%emt 0:05:14]} Rd5 {[%emt 0:11:59]} 26. f5 {[%emt 0:02:53]} Re5 {[%emt 0:05:37]} 27. Qc4 {[%emt 0:09:08]} Rc5 {[%emt 0:00:15]} 28. Qxg4 {[%emt 0:00:16]} exf5 {[%emt 0:00:02]} 29. Qb4 {[%emt 0:04:59]} Be6 {[%emt 0:04:30]} 30. Rf3 {[%emt 0:05:37]} Rc4 {[%emt 0:09:34]} 31. Qb5 {[%emt 0:00:49]} Rg4 {[%emt 0:01:14]} 32. Kf2 {[%emt 0:04:14]} Ne5 {[%emt 0:02:35]} 33. Rf4 {[%emt 0:04:26]} Rg6 {[%emt 0:00:19]} 34. Rh4 {[%emt 0:00:48]} Bd7 {[%emt 0:04:19]} 35. Qe2 {[%emt 0:08:44]} Ng4+ {[%emt 0:00:20]} 36. Kg2 {[%emt 0:00:49]} Re8 {[%emt 0:01:22]} 37. Qd3 {[%emt 0:02:15]} Ne3+ {[%emt 0:01:22]} 38. Kf3 {[%emt 0:00:58]} Rxg3+ {[%emt 0:02:10]} 39. Kf2 {[%emt 0:01:49]} Rg2+ {[%emt 0:00:15]} 40. Ke1 {[%emt 0:00:36]} Bg3# {[%emt 0:00:22]} 0-1

[Event "44th Chess Olympiad Women 2022"]
[Site "Chennai"]
[Date "2022.08.02"]
[Round "5.17"]
[White "Borosova, Zuzana"]
[Black "Medic, Mirjana"]
[Result "1/2-1/2"]
[ECO "C11"]
[WhiteElo "2277"]
[BlackElo "2194"]
[Annotator "NA RC"]
[PlyCount "60"]
[EventDate "2022.07.29"]
[EventType "team-tourn"]
[EventCountry "IND"]
[SourceTitle "playchess.com"]
[Source "ChessBase"]
[SourceQuality "1"]
[WhiteTeam "Slovakia"]
[BlackTeam "Croatia"]
[WhiteTeamCountry "SVK"]
[BlackTeamCountry "CRO"]
[TimeControl "40/5400+30:1800+30"]

1. e4 {[%emt 0:00:10]} e6 {[%emt 0:00:16]} 2. d4 {[%emt 0:00:06]} d5 {[%emt 0:00:08]} 3. Nc3 {[%emt 0:00:09]} Nf6 {[%emt 0:00:09]} 4. e5 {[%emt 0:00:13]} Nfd7 {[%emt 0:00:07]} 5. f4 {[%emt 0:00:17]} c5 {[%emt 0:00:10]} 6. Nf3 {[%emt 0:00:09]} Nc6 {[%emt 0:00:06]} 7. Be3 {[%emt 0:00:21]} a6 {[%emt 0:00:39]} 8. Qd2 {[%emt 0:00:24]} b5 {[%emt 0:00:34]} 9. dxc5 {[%emt 0:00:13]} Bxc5 {[%emt 0:00:13]} 10. Bd3 {[%emt 0:00:41]} Qb6 {[%emt 0:01:06]} 11. Bf2 {[%emt 0:00:13]} Bxf2+ {[%emt 0:02:49]} 12. Qxf2 {[%emt 0:00:06]} Nc5 {[%emt 0:01:00]} 13. O-O {[%emt 0:04:23]} b4 {[%emt 0:00:18]} 14. Ne2 {[%emt 0:06:14]} a5 {[%emt 0:00:47]} 15. Kh1 {[%emt 0:11:08]} Ne7 {[%emt 0:19:05]} 16. Nfd4 {[%emt 0:28:31]} Rb8 {[%emt 0:12:27]} 17. Qg3 {[%emt 0:16:19]} Nxd3 {[%emt 0:03:05]} 18. cxd3 {[%emt 0:00:31]} O-O {[%emt 0:00:11]} 19. Rac1 {[%emt 0:04:32]} Bd7 {[%emt 0:02:37]} 20. Rfd1 {[%emt 0:03:41]} Rfc8 {[%emt 0:02:34]} 21. Qe3 {[%emt 0:04:15]} Bb5 {[%emt 0:08:41]} 22. Rxc8+ {[%emt 0:09:19]} Rxc8 {[%emt 0:00:08]} 23. Rc1 {[%emt 0:00:35]} Rxc1+ {[%emt 0:06:47]} 24. Nxc1 {[%emt 0:00:09]} h6 {[%emt 0:00:23]} 25. Nf5 {[%emt 0:04:08]} Qxe3 {[%emt 0:00:08]} 26. Nxe3 {[%emt 0:00:04]} Nc6 {[%emt 0:00:22]} 27. Nc2 {[%emt 0:00:38]} Ba4 {[%emt 0:05:58]} 28. b3 {[%emt 0:00:38]} Bb5 {[%emt 0:00:02]} 29. Kg1 {[%emt 0:03:59]} f6 {[%emt 0:03:44]} 30. d4 {[%emt 0:00:41]} Kf7 {[%emt 0:05:14]} 1/2-1/2

[Event "44th Chess Olympiad Women 2022"]
[Site "Chennai"]
[Date "2022.08.02"]
[Round "5.17"]
[White "Sucikova, Svetlana"]
[Black "Radikovic, Anamarija"]
[Result "1-0"]
[ECO "E62"]
[WhiteElo "2188"]
[BlackElo "2099"]
[Annotator "NA RC"]
[PlyCount "87"]
[EventDate "2022.07.29"]
[EventType "team-tourn"]
[EventCountry "IND"]
[SourceTitle "playchess.com"]
[Source "ChessBase"]
[SourceQuality "1"]
[WhiteTeam "Slovakia"]
[BlackTeam "Croatia"]
[WhiteTeamCountry "SVK"]
[BlackTeamCountry "CRO"]
[TimeControl "40/5400+30:1800+30"]

1. Nf3 {[%emt 0:01:15]} Nf6 {[%emt 0:00:04]} 2. g3 {[%emt 0:01:08]} g6 {[%emt 0:00:04]} 3. Bg2 {[%emt 0:01:06]} Bg7 {[%emt 0:00:07]} 4. O-O {[%emt 0:00:54]} O-O {[%emt 0:00:04]} 5. d4 {[%emt 0:01:17]} d6 {[%emt 0:00:05]} 6. c4 {[%emt 0:01:57]} Nc6 {[%emt 0:00:08]} 7. Nc3 {[%emt 0:02:25]} Bg4 {[%emt 0:00:20]} 8. h3 {[%emt 0:02:59]} Bxf3 {[%emt 0:00:15]} 9. Bxf3 {[%emt 0:03:46]} Nd7 {[%emt 0:02:15]} 10. e3 {[%emt 0:04:56]} e5 {[%emt 0:04:00]} 11. d5 {[%emt 0:12:03]} Ne7 {[%emt 0:00:08]} 12. Bg2 {[%emt 0:02:00]} f5 {[%emt 0:07:55]} 13. e4 {[%emt 0:05:27]} a5 {[%emt 0:02:11]} 14. Be3 {[%emt 0:02:36]} f4 {[%emt 0:08:49]} 15. Bd2 {[%emt 0:03:48]} Nc5 {[%emt 0:06:58]} 16. Rb1 {[%emt 0:06:21]} Nc8 {[%emt 0:07:21]} 17. Nb5 {[%emt 0:05:25]} Nb6 {[%emt 0:06:16]} 18. b3 {[%emt 0:02:08]} c6 {[%emt 0:06:48]} 19. Nc3 {[%emt 0:03:56]} Qf6 {[%emt 0:11:30]} 20. Qf3 {[%emt 0:11:01]} a4 {[%emt 0:06:01]} 21. Ne2 {[%emt 0:04:20]} axb3 {[%emt 0:02:35]} 22. axb3 {[%emt 0:00:22]} Ra2 {[%emt 0:00:35]} 23. Rfd1 {[%emt 0:02:27]} cxd5 {[%emt 0:03:47]} 24. cxd5 {[%emt 0:00:41]} Nxe4 {[%emt 0:02:02]} 25. Qxe4 {[%emt 0:03:05]} f3 {[%emt 0:00:03]} 26. Nc3 {[%emt 0:02:12]} fxg2 {[%emt 0:00:49]} 27. Be3 {[%emt 0:03:34]} Ra6 {[%emt 0:06:18]} 28. Nb5 {[%emt 0:00:08]} Nd7 {[%emt 0:02:23]} 29. Rbc1 {[%emt 0:01:20]} Bh6 {[%emt 0:06:04]} 30. Nc7 {[%emt 0:02:50]} Ra2 {[%emt 0:01:56]} 31. Ne6 {[%emt 0:03:35]} Re2 {[%emt 0:01:08]} 32. Qh4 {[%emt 0:02:21]} g5 {[%emt 0:03:10]} 33. Qg4 {[%emt 0:00:37]} Qf3 {[%emt 0:01:31]} 34. Nxf8 {[%emt 0:00:40]} Qxg4 {[%emt 0:01:47]} 35. hxg4 {[%emt 0:00:07]} Bxf8 {[%emt 0:00:49]} 36. Bxg5 {[%emt 0:01:29]} Nc5 {[%emt 0:01:38]} 37. Be3 {[%emt 0:00:42]} Ne4 {[%emt 0:00:20]} 38. Rc8 {[%emt 0:00:20]} Kf7 {[%emt 0:00:30]} 39. Kxg2 {[%emt 0:00:29]} Nf6 {[%emt 0:00:23]} 40. g5 {[%emt 0:01:11]} Nd7 {[%emt 0:00:41]} 41. Rdc1 {[%emt 0:02:26]} Nc5 {[%emt 0:10:44]} 42. Rc7+ {[%emt 0:04:51]} Kg6 {[%emt 0:00:17]} 43. Bxc5 {[%emt 0:01:02]} dxc5 {[%emt 0:00:06]} 44. Rd1 {[%emt 0:00:16]} 1-0

[Event "44th Chess Olympiad Women 2022"]
[Site "Chennai"]
[Date "2022.08.02"]
[Round "5.17"]
[White "Berke, Ana"]
[Black "Hagarova, Zuzana"]
[Result "1/2-1/2"]
[ECO "B53"]
[WhiteElo "2163"]
[BlackElo "2293"]
[Annotator "NA RC"]
[PlyCount "91"]
[EventDate "2022.07.29"]
[EventType "team-tourn"]
[EventCountry "IND"]
[SourceTitle "playchess.com"]
[Source "ChessBase"]
[SourceQuality "1"]
[WhiteTeam "Croatia"]
[BlackTeam "Slovakia"]
[WhiteTeamCountry "CRO"]
[BlackTeamCountry "SVK"]
[TimeControl "40/5400+30:1800+30"]

1. e4 {[%emt 0:00:14]} c5 {[%emt 0:00:17]} 2. Nf3 {[%emt 0:00:06]} Nc6 {[%emt 0:00:10]} 3. Bb5 {[%emt 0:00:11]} d6 {[%emt 0:01:00]} 4. d4 {[%emt 0:01:07]} cxd4 {[%emt 0:00:26]} 5. Qxd4 {[%emt 0:00:47]} Bd7 {[%emt 0:00:24]} 6. Bxc6 {[%emt 0:00:41]} Bxc6 {[%emt 0:00:06]} 7. Nc3 {[%emt 0:00:28]} Nf6 {[%emt 0:00:47]} 8. Bg5 {[%emt 0:02:10]} e6 {[%emt 0:01:31]} 9. O-O-O {[%emt 0:01:59]} Be7 {[%emt 0:00:39]} 10. Qd3 {[%emt 0:01:15]} Qa5 {[%emt 0:03:03]} 11. h4 {[%emt 0:03:54]} Qa6 {[%emt 0:09:15]} 12. Qd2 {[%emt 0:13:58]} O-O {[%emt 0:10:15]} 13. Nd4 {[%emt 0:02:48]} Rfc8 {[%emt 0:09:41]} 14. f3 {[%emt 0:07:52]} b5 {[%emt 0:05:00]} 15. Kb1 {[%emt 0:01:28]} Be8 {[%emt 0:06:38]} 16. g4 {[%emt 0:01:47]} Rc4 {[%emt 0:04:32]} 17. Nce2 {[%emt 0:08:00]} Rac8 {[%emt 0:02:33]} 18. Bxf6 {[%emt 0:04:26]} Bxf6 {[%emt 0:05:54]} 19. g5 {[%emt 0:01:21]} Be7 {[%emt 0:03:21]} 20. h5 {[%emt 0:03:37]} Bf8 {[%emt 0:05:24]} 21. g6 {[%emt 0:04:45]} h6 {[%emt 0:07:17]} 22. Rhg1 {[%emt 0:04:06]} fxg6 {[%emt 0:07:42]} 23. hxg6 {[%emt 0:06:02]} d5 {[%emt 0:08:43]} 24. exd5 {[%emt 0:04:40]} e5 {[%emt 0:00:57]} 25. Ne6 {[%emt 0:05:59]} Rxc2 {[%emt 0:01:40]} 26. Qxc2 {[%emt 0:06:45]} Rxc2 {[%emt 0:00:23]} 27. Kxc2 {[%emt 0:00:09]} Qa4+ {[%emt 0:03:14]} 28. Kb1 {[%emt 0:05:03]} Bxg6+ {[%emt 0:00:55]} 29. Ka1 {[%emt 0:00:57]} b4 {[%emt 0:00:29]} 30. b3 {[%emt 0:04:28]} Qe8 {[%emt 0:00:14]} 31. Ng3 {[%emt 0:01:59]} Qf7 {[%emt 0:01:49]} 32. Nxf8 {[%emt 0:00:46]} Qxf8 {[%emt 0:00:53]} 33. Rgf1 {[%emt 0:01:37]} Qc5 {[%emt 0:01:14]} 34. Ne4 {[%emt 0:00:29]} Qb5 {[%emt 0:00:26]} 35. d6 {[%emt 0:00:20]} Be8 {[%emt 0:00:08]} 36. Rf2 {[%emt 0:01:22]} a5 {[%emt 0:00:41]} 37. Rc2 {[%emt 0:00:11]} a4 {[%emt 0:00:47]} 38. Rc8 {[%emt 0:00:20]} Kh7 {[%emt 0:00:29]} 39. Rxe8 {[%emt 0:00:23]} Qe2 {[%emt 0:00:30]} 40. Rd2 {[%emt 0:01:21]} Qxf3 {[%emt 0:00:31]} 41. d7 {[%emt 0:04:14]} Qh1+ {[%emt 0:03:31]} 42. Kb2 {[%emt 0:02:59]} a3+ {[%emt 0:02:26]} 43. Kc2 {[%emt 0:00:17]} Qxe4+ {[%emt 0:00:23]} 44. Kd1 {[%emt 0:05:46]} Qh1+ {[%emt 0:01:02]} 45. Ke2 {[%emt 0:02:57]} Qe4+ {[%emt 0:01:41]} 46. Kd1 {[%emt 0:01:28]} 1/2-1/2

[Event "44th Chess Olympiad Women 2022"]
[Site "Chennai"]
[Date "2022.08.02"]
[Round "5.17"]
[White "Ivekovic, Tihana"]
[Black "Mrvova, Alena"]
[Result "1-0"]
[ECO "A32"]
[WhiteElo "2082"]
[BlackElo "2165"]
[Annotator "NA RC"]
[PlyCount "115"]
[EventDate "2022.07.29"]
[EventType "team-tourn"]
[EventCountry "IND"]
[SourceTitle "playchess.com"]
[Source "ChessBase"]
[SourceQuality "1"]
[WhiteTeam "Croatia"]
[BlackTeam "Slovakia"]
[WhiteTeamCountry "CRO"]
[BlackTeamCountry "SVK"]
[TimeControl "40/5400+30:1800+30"]

1. d4 {[%emt 0:00:02]} Nf6 {[%emt 0:00:30]} 2. c4 {[%emt 0:00:07]} e6 {[%emt 0:00:41]} 3. Nf3 {[%emt 0:00:08]} c5 {[%emt 0:00:44]} 4. Nc3 {[%emt 0:01:14]} cxd4 {[%emt 0:01:40]} 5. Nxd4 {[%emt 0:00:12]} Bb4 {[%emt 0:01:19]} 6. e3 {[%emt 0:06:27]} O-O {[%emt 0:02:06]} 7. Be2 {[%emt 0:00:40]} d5 {[%emt 0:03:54]} 8. cxd5 {[%emt 0:03:49]} Nxd5 {[%emt 0:01:40]} 9. Bd2 {[%emt 0:00:25]} Nxc3 {[%emt 0:00:46]} 10. Bxc3 {[%emt 0:01:59]} Bxc3+ {[%emt 0:01:00]} 11. bxc3 {[%emt 0:00:05]} e5 {[%emt 0:02:30]} 12. Nb3 {[%emt 0:01:53]} Qc7 {[%emt 0:03:01]} 13. Qc2 {[%emt 0:00:53]} Be6 {[%emt 0:01:18]} 14. O-O {[%emt 0:00:29]} Nd7 {[%emt 0:00:54]} 15. Rfd1 {[%emt 0:03:20]} Rac8 {[%emt 0:00:46]} 16. Rac1 {[%emt 0:10:29]} Nb6 {[%emt 0:04:25]} 17. Qe4 {[%emt 0:07:07]} f5 {[%emt 0:01:01]} 18. Qb1 {[%emt 0:01:22]} Rf6 {[%emt 0:03:16]} 19. Bf3 {[%emt 0:13:14]} Qf7 {[%emt 0:07:10]} 20. c4 {[%emt 0:12:09]} g5 {[%emt 0:07:56]} 21. c5 {[%emt 0:06:22]} Nd5 {[%emt 0:01:34]} 22. Na5 {[%emt 0:06:48]} Rc7 {[%emt 0:07:00]} 23. Be2 {[%emt 0:10:17]} Rh6 {[%emt 0:09:17]} 24. Qb2 {[%emt 0:00:43]} e4 {[%emt 0:02:34]} 25. Qe5 {[%emt 0:00:35]} Nf6 {[%emt 0:01:21]} 26. Nc4 {[%emt 0:02:12]} Ne8 {[%emt 0:03:51]} 27. Rd8 {[%emt 0:01:20]} Rd7 {[%emt 0:01:58]} 28. Nd6 {[%emt 0:00:46]} Rxd8 {[%emt 0:00:22]} 29. Nxf7 {[%emt 0:00:05]} Kxf7 {[%emt 0:00:18]} 30. g4 {[%emt 0:01:28]} Rf6 {[%emt 0:03:57]} 31. gxf5 {[%emt 0:00:19]} Rxf5 {[%emt 0:03:45]} 32. Bh5+ {[%emt 0:00:27]} Ke7 {[%emt 0:00:27]} 33. Qh8 {[%emt 0:01:07]} Rf6 {[%emt 0:04:57]} 34. Qxh7+ {[%emt 0:00:38]} Kf8 {[%emt 0:00:09]} 35. Qxb7 {[%emt 0:01:04]} Ng7 {[%emt 0:00:19]} 36. Be2 {[%emt 0:01:05]} Rf7 {[%emt 0:00:21]} 37. Qxe4 {[%emt 0:01:44]} Bd5 {[%emt 0:02:21]} 38. Qg6 {[%emt 0:00:54]} Ne6 {[%emt 0:00:54]} 39. Bh5 {[%emt 0:01:40]} Rg7 {[%emt 0:02:05]} 40. Qf6+ {[%emt 0:01:08]} Kg8 {[%emt 0:00:04]} 41. c6 {[%emt 0:32:21]} Rf8 {[%emt 0:30:13]} 42. Qe5 {[%emt 0:00:06]} Nc7 {[%emt 0:00:05]} 43. a4 {[%emt 0:00:00]} g4 {[%emt 0:00:00]} 44. e4 {[%emt 0:00:00]} Bf7 {[%emt 0:00:00]} 45. Qxc7 {[%emt 0:00:00]} Bxh5 {[%emt 0:00:00]} 46. Qg3 {[%emt 0:00:00]} Bg6 {[%emt 0:00:00]} 47. c7 {[%emt 0:00:00]} Rc8 {[%emt 0:00:00]} 48. Qd6 {[%emt 0:00:00]} Kh7 {[%emt 0:00:00]} 49. e5 {[%emt 0:00:00]} Bf5 {[%emt 0:00:00]} 50. e6 {[%emt 0:00:00]} Rgg8 {[%emt 0:00:00]} 51. Rc5 {[%emt 0:00:00]} Bg6 {[%emt 0:00:00]} 52. Qd7+ {[%emt 0:00:00]} Kh6 {[%emt 0:00:00]} 53. e7 {[%emt 0:00:00]} Rge8 {[%emt 0:00:00]} 54. Rc6 {[%emt 0:00:00]} Kh7 {[%emt 0:00:00]} 55. Qe6 {[%emt 0:00:00]} Rg8 {[%emt 0:00:00]} 56. e8=Q {[%emt 0:00:00]} Rcxe8 {[%emt 0:00:00]} 57. c8=Q {[%emt 0:00:30]} Rxc8 {[%emt 0:00:00]} 58. Rxc8 {[%emt 0:00:00]} 1-0

[Event "44th Chess Olympiad Women 2022"]
[Site "Chennai"]
[Date "2022.08.02"]
[Round "5.18"]
[White "Movsesian, Julia"]
[Black "Nazarova, Anastasia"]
[Result "1-0"]
[ECO "C76"]
[WhiteElo "2291"]
[BlackElo "2208"]
[Annotator "NA RC"]
[PlyCount "87"]
[EventDate "2022.07.29"]
[EventType "team-tourn"]
[EventCountry "IND"]
[SourceTitle "playchess.com"]
[Source "ChessBase"]
[SourceQuality "1"]
[WhiteTeam "Czech Republic"]
[BlackTeam "Finland"]
[WhiteTeamCountry "CZE"]
[BlackTeamCountry "FIN"]
[TimeControl "40/5400+30:1800+30"]

1. e4 {[%emt 0:00:03]} e5 {[%emt 0:00:04]} 2. Nf3 {[%emt 0:00:04]} Nc6 {[%emt 0:00:03]} 3. Bb5 {[%emt 0:00:05]} a6 {[%emt 0:00:04]} 4. Ba4 {[%emt 0:00:04]} d6 {[%emt 0:00:08]} 5. O-O {[%emt 0:03:56]} Bd7 {[%emt 0:00:03]} 6. c3 {[%emt 0:00:43]} g6 {[%emt 0:03:05]} 7. d4 {[%emt 0:02:54]} Bg7 {[%emt 0:01:09]} 8. Re1 {[%emt 0:09:05]} Nge7 {[%emt 0:05:08]} 9. Be3 {[%emt 0:06:13]} O-O {[%emt 0:01:10]} 10. Nbd2 {[%emt 0:00:44]} Qe8 {[%emt 0:10:22]} 11. Bb3 {[%emt 0:07:24]} h6 {[%emt 0:05:36]} 12. h3 {[%emt 0:09:42]} Kh7 {[%emt 0:05:19]} 13. Nf1 {[%emt 0:01:48]} Rd8 {[%emt 0:12:40]} 14. Ng3 {[%emt 0:03:55]} Na5 {[%emt 0:06:49]} 15. Bc2 {[%emt 0:00:22]} Nc4 {[%emt 0:05:31]} 16. Bc1 {[%emt 0:00:26]} Bc8 {[%emt 0:01:10]} 17. Qe2 {[%emt 0:06:07]} Nb6 {[%emt 0:06:16]} 18. Be3 {[%emt 0:01:28]} Nd7 {[%emt 0:01:06]} 19. Rad1 {[%emt 0:00:33]} Nc6 {[%emt 0:00:32]} 20. Nh2 {[%emt 0:07:38]} Qe7 {[%emt 0:07:07]} 21. f4 {[%emt 0:08:30]} Rfe8 {[%emt 0:08:53]} 22. Ng4 {[%emt 0:08:25]} Nf6 {[%emt 0:02:38]} 23. f5 {[%emt 0:00:36]} h5 {[%emt 0:08:44]} 24. Nxf6+ {[%emt 0:03:23]} Qxf6 {[%emt 0:02:15]} 25. Rf1 {[%emt 0:00:32]} Qe7 {[%emt 0:00:38]} 26. Nxh5 {[%emt 0:04:36]} gxh5 {[%emt 0:03:27]} 27. Qxh5+ {[%emt 0:00:04]} Kg8 {[%emt 0:00:05]} 28. Bb3 {[%emt 0:01:22]} d5 {[%emt 0:00:59]} 29. exd5 {[%emt 0:00:31]} Na5 {[%emt 0:00:05]} 30. f6 {[%emt 0:01:15]} Bxf6 {[%emt 0:00:28]} 31. d6 {[%emt 0:00:19]} Rxd6 {[%emt 0:00:29]} 32. Qg6+ {[%emt 0:00:34]} Kh8 {[%emt 0:01:37]} 33. Bxf7 {[%emt 0:00:26]} Bg5 {[%emt 0:00:57]} 34. Qh5+ {[%emt 0:00:27]} Rh6 {[%emt 0:00:16]} 35. Qxg5 {[%emt 0:00:18]} Qxg5 {[%emt 0:01:11]} 36. Bxg5 {[%emt 0:00:22]} Rhe6 {[%emt 0:00:21]} 37. Bxe8 {[%emt 0:00:00]} Rxe8 {[%emt 0:00:04]} 38. Bf6+ {[%emt 0:00:00]} Kg8 {[%emt 0:00:03]} 39. Bxe5 {[%emt 0:00:00]} Nc4 {[%emt 0:00:19]} 40. Rde1 {[%emt 0:00:11]} c6 {[%emt 0:00:52]} 41. b3 {[%emt 0:30:22]} Na3 {[%emt 0:04:32]} 42. Re3 {[%emt 0:00:00]} Re6 {[%emt 0:00:31]} 43. Rg3+ {[%emt 0:00:00]} Kh7 {[%emt 0:00:10]} 44. Rf8 {[%emt 0:00:00]} 1-0